Workbook

Sheet паспорт
A1: ПАТ "УКРТРАНСГАЗ" | G1: ПАСПОРТ ФІЗИКО-ХІМІЧНИХ ПОКАЗНИКІВ ПРИРОДНОГО ГАЗУ № 139
A2: Філія "УМГ "Київтрансгаз" | G2: ПАТ "Укртрансгаз" УМГ "Київтрансгаз" Диканським ЛВУМГ та прийнятого ПАТ"Харківгаз"
A3: Солохівський п/м Диканське ЛВУМГ | G3: точка відбору проби ГРС Олексіївка (Дублянка, Н Іванівка)
A4: Вимірювальна хіміко-аналітична лабораторія | L4: Маршрут № 139
A5: Свідоцтво № 221-15 чинне до 31.12.2018 р. | K5: по газопроводу-відводу ГРС Олексіївка | V5: за період з | X5: 2017-04-01 | Z5: по | AA5: 31.04.2017
A7: Число місяця | B7: Компонентний склад, % мол. | N7: Фізико-хімічні показники газу обчислені на основі компонентного складу, 101,325 кПа | X7: Температура точки роси за вологою (Р = 3.92 МПа), ºС | Y7: Температура точки роси за вуглеводнями, ºС | Z7: Вміст сірководню, мг/м3 | AA7: Вміст меркаптанової сірки, мг/м3 | AB7: Вміст механічних домішок, мг/м3
N8: Густина абсолютна, кг/м3,при 20 ºС, | O8: Температура вимірювання/згоряння при 20/25°С
B9: метан, С1 | C9: етан, С2 | D9: пропан, С3 | E9: ізо-бутан, і-С4 | F9: н-бутан, н-С4 | G9: нео-пентан, нео-С5 | H9: ізо-пентан, і-С5 | I9: н-пентан, н-С5 | J9: гексани та вищі, С6+ | K9: кисень, О2 | L9: азот, N2 | M9: діоксид вуглецю, CО2 | O9: Теплота згоряння нижча | R9: Теплота згоряння вища | U9: Число Воббе вище
O10: ккал/м3 | P10: МДж/м3 | Q10: кВт⋅год/м3 | R10: ккал/м3 | S10: МДж/м3 | T10: кВт⋅год/м3 | U10: ккал/м3 | V10: МДж/м3 | W10: кВт⋅год/м3
A11: 1 | O11: =P11*238.8459 -> 8583.118493 | P11: 35.9358 | Q11: =P11/3.6 -> 9.982166667 | R11: =S11*238.8459 -> 9500.430057 | S11: 39.7764 | T11: =S11/3.6 -> 11.049 | AC11: =SUM(B11:M11)+$K$42+$N$42 -> 0
A12: 2 | O12: =P12*238.8459 -> 8583.118493 | P12: 35.9358 | Q12: =P12/3.6 -> 9.982166667 | R12: =S12*238.8459 -> 9500.430057 | S12: 39.7764 | T12: 11.049 | AC12: 0
A13: 3 | O13: =P13*238.8459 -> 8583.118493 | P13: 35.9358 | Q13: 9.982166667 | R13: 9500.430057 | S13: 39.7764 | T13: 11.049 | AC13: 0 | AD13: =IF(AC13=100,"ОК"," ") -> 
A14: 4 | B14: 90.1853 | C14: 5.8588 | D14: 1.7927 | E14: 0.1991 | F14: 0.2756 | G14: 0.0044 | H14: 0.0526 | I14: 0.0329 | J14: 0.026 | K14: 0.0019 | L14: 0.2209 | M14: 1.3498 | N14: 0.7518 | O14: 8566.996395 | P14: 35.8683 | Q14: 9.963416667 | R14: 9483.400344 | S14: 39.7051 | T14: 11.02919444 | U14: =(V14*238.8459) -> 12003.79782 | V14: 50.2575 | W14: =V14/3.6 -> 13.96041667 | X14: -8.3 | Y14: -11.4 | AC14: 100 | AD14: =IF(AC14=100,"ОК"," ") -> ОК
A15: 5 | O15: 8566.996395 | P15: 35.8683 | Q15: 9.963416667 | R15: 9483.400344 | S15: 39.7051 | T15: 11.02919444 | AC15: 0
A16: 6 | O16: 8566.996395 | P16: 35.8683 | Q16: 9.963416667 | R16: 9483.400344 | S16: 39.7051 | T16: 11.02919444 | AC16: 0
A17: 7 | O17: =P17*238.8459 -> 8566.996395 | P17: 35.8683 | Q17: =P17/3.6 -> 9.963416667 | R17: 9483.400344 | S17: 39.7051 | T17: 11.02919444 | AC17: 0
A18: 8 | O18: 8566.996395 | P18: 35.8683 | Q18: 9.963416667 | R18: 9483.400344 | S18: 39.7051 | T18: 11.02919444 | AC18: 0
A19: 9 | O19: 8566.996395 | P19: 35.8683 | Q19: 9.963416667 | R19: 9483.400344 | S19: 39.7051 | T19: 11.02919444 | AC19: 0
A20: 10 | O20: 8566.996395 | P20: 35.8683 | Q20: =P20/3.6 -> 9.963416667 | R20: 9483.400344 | S20: 39.7051 | T20: =S20/3.6 -> 11.02919444 | AC20: 0
A21: 11 | O21: 8566.996395 | P21: 35.8683 | Q21: 9.963416667 | R21: 9483.400344 | S21: 39.7051 | T21: 11.02919444 | AC21: 0
A22: 12 | O22: 8566.996395 | P22: 35.8683 | Q22: 9.963416667 | R22: 9483.400344 | S22: 39.7051 | T22: 11.02919444 | AC22: 0
A23: 13 | B23: 90.6196 | C23: 5.6259 | D23: 1.689 | E23: 0.1829 | F23: 0.2501 | G23: 0.0039 | H23: 0.0467 | I23: 0.0292 | J23: 0.0231 | K23: 0.0027 | L23: 0.2213 | M23: 1.3057 | N23: 0.7476 | O23: 8531.838278 | P23: 35.7211 | Q23: 9.922527778 | R23: 9445.686576 | S23: 39.5472 | T23: 10.98533333 | U23: =(V23*238.8459) -> 11989.44318 | V23: 50.1974 | W23: =V23/3.6 -> 13.94372222 | X23: -9.3 | Y23: -10.7 | AC23: 100.0001
A24: 14 | O24: 8531.838278 | P24: 35.7211 | Q24: 9.922527778 | R24: 9445.686576 | S24: 39.5472 | T24: 10.98533333 | Z24: 1.87 | AA24: 0.86 | AB24: відс | AC24: 0
A25: 15 | O25: 8531.838278 | P25: 35.7211 | Q25: 9.922527778 | R25: 9445.686576 | S25: 39.5472 | T25: 10.98533333 | AC25: 0
A26: 16 | O26: 8531.838278 | P26: 35.7211 | Q26: =P26/3.6 -> 9.922527778 | R26: 9445.686576 | S26: 39.5472 | T26: =S26/3.6 -> 10.98533333 | AC26: 0
A27: 17 | O27: 8531.838278 | P27: 35.7211 | Q27: 9.922527778 | R27: 9445.686576 | S27: 39.5472 | T27: 10.98533333 | AC27: 0
A28: 18 | O28: 8531.838278 | P28: 35.7211 | Q28: 9.922527778 | R28: 9445.686576 | S28: 39.5472 | T28: 10.98533333 | AC28: 0
A29: 19 | B29: 90.0707 | C29: 5.9811 | D29: 1.8105 | E29: 0.1912 | F29: 0.2559 | G29: 0.0038 | H29: 0.0445 | I29: 0.0271 | J29: 0.0201 | K29: 0.0016 | L29: 0.2222 | M29: 1.3713 | N29: 0.7519 | O29: 8564.584051 | P29: 35.8582 | Q29: 9.960611111 | R29: 9480.72527 | S29: 39.6939 | T29: 11.02608333 | U29: 11998.92536 | V29: 50.2371 | W29: 13.95475 | X29: -12 | Y29: -18.4 | AC29: 100 | AD29: ОК
A30: 20 | O30: 8564.584051 | P30: 35.8582 | Q30: 9.960611111 | R30: 9480.72527 | S30: 39.6939 | T30: 11.02608333 | AC30: 0 | AD30: =IF(AC30=100,"ОК"," ") -> 
A31: 21 | O31: 8564.584051 | P31: 35.8582 | Q31: 9.960611111 | R31: 9480.72527 | S31: 39.6939 | T31: 11.02608333 | AC31: 0
A32: 22 | O32: 8564.584051 | P32: 35.8582 | Q32: 9.960611111 | R32: 9480.72527 | S32: 39.6939 | T32: 11.02608333 | AC32: 0
A33: 23 | O33: 8564.584051 | P33: 35.8582 | Q33: =P33/3.6 -> 9.960611111 | R33: 9480.72527 | S33: 39.6939 | T33: =S33/3.6 -> 11.02608333 | AC33: 0 | AD33: =IF(AC33=100,"ОК"," ") -> 
A34: 24 | O34: 8564.584051 | P34: 35.8582 | Q34: 9.960611111 | R34: 9480.72527 | S34: 39.6939 | T34: 11.02608333 | AC34: 0
A35: 25 | B35: 90.2098 | C35: 5.8871 | D35: 1.7593 | E35: 0.1886 | F35: 0.257 | G35: 0.0039 | H35: 0.0477 | I35: 0.0299 | J35: 0.025 | K35: 0.0027 | L35: 0.2284 | M35: 1.3607 | N35: 0.751 | O35: 8555.31683 | P35: 35.8194 | Q35: 9.949833333 | R35: 9470.813165 | S35: 39.6524 | T35: 11.01455556 | U35: 11994.2201 | V35: 50.2174 | W35: 13.94927778 | X35: -7.3 | Y35: -11.2 | AC35: 100.0001
A36: 26 | O36: 8555.31683 | P36: 35.8194 | Q36: 9.949833333 | R36: 9470.813165 | S36: 39.6524 | T36: =S36/3.6 -> 11.01455556 | AC36: 0
A37: 27 | O37: 8555.31683 | P37: 35.8194 | Q37: 9.949833333 | R37: 9470.813165 | S37: 39.6524 | T37: 11.01455556 | AC37: 0
A38: 28 | O38: 8555.31683 | P38: 35.8194 | Q38: 9.949833333 | R38: 9470.813165 | S38: 39.6524 | T38: 11.01455556 | AC38: 0
A39: 29 | O39: =P39*238.8459 -> 8555.31683 | P39: 35.8194 | Q39: =P39/3.6 -> 9.949833333 | R39: =S39*238.8459 -> 9470.813165 | S39: 39.6524 | T39: =S39/3.6 -> 11.01455556 | AC39: 0
A40: 30 | O40: 8555.31683 | P40: 35.8194 | Q40: 9.949833333 | R40: =S40*238.8459 -> 9470.813165 | S40: 39.6524 | T40: =S40/3.6 -> 11.01455556 | AC40: 0
A41: 31 | AC41: 0
A42: Рівень одоризації відповідає чинним нормативним документам | O42: 8559.587807 | P42: 35.83728173 | Q42: 9.954800479 | R42: 9475.38735 | S42: 39.6715512 | T42: 11.01987533
H43: Середньозважене значення теплоти згоряння:
B46: Заступник начальника Диканського ЛВУМГ Герасименко І.М. 28.04.2017
C47: Підрозділу підприємства, якому підпорядкована лабораторія | O47: прізвище | R47: підпис | V47: дата
B48: Керівник лабораторії Корж Л.М. 28.04.2017
C49: Лабораторія, де здійснювалось вимірювання газу | O49: прізвище | R49: підпис | V49: дата

Sheet додаток
A2: Додаток до Паспорту фізико-хімічних показників природного газу №139
A4: Область | B4: ГРС, прямий споживач | C4: Cередньозважене значення вищої теплоти згоряння
C5: МДж/м³ | D5: ккал/м³ | E5: кВт*год./м³
A6: Харківська область | B6: ГРС Олексіївка (Дублянка) | C6: 39.6715512 | D6: 9475.38735 | E6: 11.01987533
A7: Харківська область | B7: ГРС Олексіївка (Н Іванівка) | C7: 39.6715512 | D7: 9475.38735 | E7: 11.01987533
A8: Середньозважене значення вищої теплоти згоряння по маршруту № 139 | C8: 39.6715512 | D8: 9475.38735 | E8: 11.01987533
A10: Заступник начальника Диканського ЛВУМГ Герасименко І.М. 28.04.2017
A11: Підрозділу підприємства, якому підпорядкована лабораторія прізвище | D11: підпис дата
A12: Керівник лабораторії Корж Л.М. 28.04.2017
A13: Лабораторія, де здійснювалось вимірювання газу прізвище підпис дата

Sheet variablesList (hidden)
A1: 3 | B1: x:\gaysin | C1: 10, 11, 24, 25, 127, 128, 132, 180, 207, 215 | D1: x:\
B2: x:\Illinci
B3: x:\Talne
